[Event "Titled Tuesday Blitz January 03 Early 2023"]
[White "Odegov, Artem"]
[Black "Schut, Han"]
[WhiteFideId "34183644"]
[BlackFideId "1005561"]
[WhiteElo "2261"]
[BlackElo "2101"]
[Result "1-0"]
[Round "01"]
[TimeControl "180+2"]
[Date "2023.01.03"]
[WhiteClock "0:01:23"]
[BlackClock "0:00:31"]

1. d4 {[%clk 0:03:00]}  Nf6 {[%clk 0:02:59]} 2. c4 {[%clk 0:03:01]}  g6 {[%clk 0:02:51]} 3. Nc3 {[%clk 0:02:58]}  d5 {[%clk 0:02:52]} 4. cxd5 {[%clk 0:02:57]}  Nxd5 {[%clk 0:02:53]} 5. e4 {[%clk 0:02:58]}  Nxc3 {[%clk 0:02:53]} 6. bxc3 {[%clk 0:02:58]}  Bg7 {[%clk 0:02:53]} 7. Bc4 {[%clk 0:02:55]}  c5 {[%clk 0:02:53]} 8. Ne2 {[%clk 0:02:54]}  Nc6 {[%clk 0:02:53]} 9. Be3 {[%clk 0:02:53]}  O-O {[%clk 0:02:49]} 10. O-O {[%clk 0:02:52]}  Qc7 {[%clk 0:02:50]} 11. Rc1 {[%clk 0:02:51]}  Rd8 {[%clk 0:02:50]} 12. Qb3 {[%clk 0:02:49]}  Na5 {[%clk 0:02:39]} 13. Qa4 {[%clk 0:02:37]}  cxd4 {[%clk 0:02:21]} 14. cxd4 {[%clk 0:02:36]}  Nxc4 {[%clk 0:02:21]} 15. Rxc4 {[%clk 0:02:36]}  Qd7 {[%clk 0:02:09]} 16. Qb4 {[%clk 0:02:34]}  b5 {[%clk 0:02:04]} 17. Rc5 {[%clk 0:02:29]}  a6 {[%clk 0:01:43]} 18. Rfc1 {[%clk 0:02:25]}  Qe6 {[%clk 0:01:35]} 19. d5 {[%clk 0:02:22]}  Qe5 {[%clk 0:01:11]} 20. Bf4 {[%clk 0:02:16]}  Qb2 {[%clk 0:01:11]} 21. Qxb2 {[%clk 0:02:08]}  Bxb2 {[%clk 0:01:12]} 22. R1c2 {[%clk 0:02:09]}  Ba3 {[%clk 0:01:05]} 23. Rc7 {[%clk 0:02:05]}  Bd6 {[%clk 0:01:03]} 24. Bxd6 {[%clk 0:02:03]}  exd6 {[%clk 0:01:04]} 25. Nd4 {[%clk 0:02:00]}  Bd7 {[%clk 0:01:01]} 26. Rb7 {[%clk 0:01:53]}  Rdc8 {[%clk 0:00:47]} 27. Rxd7 {[%clk 0:01:50]}  Rxc2 {[%clk 0:00:47]} 28. Nxc2 {[%clk 0:01:51]}  Rc8 {[%clk 0:00:47]} 29. Ne3 {[%clk 0:01:52]}  Rc1+ {[%clk 0:00:47]} 30. Nf1 {[%clk 0:01:52]}  Ra1 {[%clk 0:00:47]} 31. Rxd6 {[%clk 0:01:51]}  Rxa2 {[%clk 0:00:48]} 32. Rb6 {[%clk 0:01:52]}  Kf8 {[%clk 0:00:46]} 33. d6 {[%clk 0:01:49]}  Ke8 {[%clk 0:00:46]} 34. Rb7 {[%clk 0:01:49]}  Rb2 {[%clk 0:00:42]} 35. g3 {[%clk 0:01:47]}  a5 {[%clk 0:00:43]} 36. Ne3 {[%clk 0:01:47]}  a4 {[%clk 0:00:43]} 37. Ra7 {[%clk 0:01:46]}  Ra2 {[%clk 0:00:39]} 38. Nd5 {[%clk 0:01:45]}  Re2 {[%clk 0:00:32]} 39. Nf6+ {[%clk 0:01:43]}  Kf8 {[%clk 0:00:31]} 40. d7 {[%clk 0:01:24]}  Rd2 {[%clk 0:00:31]} 41. Nd5 {[%clk 0:01:23]} 1-0


[Site "https://www.chess.com"]

[Event "Titled Tuesday Blitz January 03 Early 2023"]
[White "Dinter, Brian"]
[Black "Maltsevskaya, Aleksandra"]
[WhiteFideId "14527570"]
[BlackFideId "24174041"]
[WhiteElo "2074"]
[BlackElo "2390"]
[Result "0-1"]
[Round "01"]
[TimeControl "180+2"]
[Date "2023.01.03"]
[WhiteClock "0:00:34"]
[BlackClock "0:00:36"]

1. d4 {[%clk 0:02:58]}  d6 {[%clk 0:02:55]} 2. Bf4 {[%clk 0:02:57]}  Nd7 {[%clk 0:02:56]} 3. Nf3 {[%clk 0:02:56]}  Ngf6 {[%clk 0:02:55]} 4. h3 {[%clk 0:02:55]}  g6 {[%clk 0:02:56]} 5. e3 {[%clk 0:02:55]}  Bg7 {[%clk 0:02:57]} 6. Be2 {[%clk 0:02:56]}  O-O {[%clk 0:02:58]} 7. O-O {[%clk 0:02:56]}  b6 {[%clk 0:02:59]} 8. c4 {[%clk 0:02:56]}  Bb7 {[%clk 0:02:59]} 9. Nc3 {[%clk 0:02:56]}  Ne4 {[%clk 0:02:59]} 10. Qc2 {[%clk 0:02:54]}  Nxc3 {[%clk 0:02:59]} 11. bxc3 {[%clk 0:02:53]}  e5 {[%clk 0:03:00]} 12. Bh2 {[%clk 0:02:53]}  h5 {[%clk 0:02:58]} 13. Rab1 {[%clk 0:02:51]}  e4 {[%clk 0:02:57]} 14. Nd2 {[%clk 0:02:51]}  Qe7 {[%clk 0:02:56]} 15. c5 {[%clk 0:02:47]}  dxc5 {[%clk 0:02:48]} 16. Bxc7 {[%clk 0:02:46]}  Rac8 {[%clk 0:02:47]} 17. Bh2 {[%clk 0:02:38]}  cxd4 {[%clk 0:02:47]} 18. exd4 {[%clk 0:02:39]}  Bxd4 {[%clk 0:02:47]} 19. c4 {[%clk 0:02:37]}  e3 {[%clk 0:02:45]} 20. Nf3 {[%clk 0:02:28]}  exf2+ {[%clk 0:02:44]} 21. Kh1 {[%clk 0:02:28]}  Be3 {[%clk 0:02:42]} 22. Bg3 {[%clk 0:02:23]}  Be4 {[%clk 0:02:38]} 23. Bd3 {[%clk 0:02:24]}  Bxf3 {[%clk 0:02:38]} 24. gxf3 {[%clk 0:02:23]}  Ne5 {[%clk 0:02:37]} 25. Bxf2 {[%clk 0:02:20]}  Bxf2 {[%clk 0:02:21]} 26. Rxf2 {[%clk 0:02:20]}  Qd7 {[%clk 0:02:21]} 27. Bf1 {[%clk 0:02:07]}  Rfe8 {[%clk 0:02:16]} 28. f4 {[%clk 0:02:02]}  Nxc4 {[%clk 0:02:10]} 29. Bxc4 {[%clk 0:01:48]}  Qxh3+ {[%clk 0:02:09]} 30. Rh2 {[%clk 0:01:48]}  Qf3+ {[%clk 0:02:09]} 31. Rg2 {[%clk 0:01:48]}  Kh7 {[%clk 0:00:55]} 32. Qb3 {[%clk 0:01:19]}  Qxf4 {[%clk 0:00:50]} 33. Bxf7 {[%clk 0:01:10]}  Re3 {[%clk 0:00:45]} 34. Bxg6+ {[%clk 0:01:07]}  Kh6 {[%clk 0:00:45]} 35. Qf7 {[%clk 0:00:41]}  Rh3+ {[%clk 0:00:33]} 36. Kg1 {[%clk 0:00:40]}  Qe3+ {[%clk 0:00:34]} 37. Qf2 {[%clk 0:00:36]}  Rc1+ {[%clk 0:00:34]} 38. Rxc1 {[%clk 0:00:34]}  Qxc1+ {[%clk 0:00:35]} 39. Qf1 {[%clk 0:00:34]}  Rh1+ {[%clk 0:00:35]} 40. Kxh1 {[%clk 0:00:33]}  Qxf1+ {[%clk 0:00:36]} 41. Kh2 {[%clk 0:00:34]}  Qxg2+ {[%clk 0:00:35]} 42. Kxg2 {[%clk 0:00:34]}  Kxg6 {[%clk 0:00:36]} 0-1


[Site "https://www.chess.com"]

[Event "Titled Tuesday Blitz January 03 Early 2023"]
[White "Goroshkov, Maksym"]
[Black "Viskelis, Darius"]
[WhiteFideId "14142716"]
[BlackFideId "12800830"]
[WhiteElo "2287"]
[BlackElo "2166"]
[Result "0-1"]
[Round "01"]
[TimeControl "180+2"]
[Date "2023.01.03"]
[WhiteClock "0:00:20"]
[BlackClock "0:00:04"]

1. e4 {[%clk 0:03:00]}  c5 {[%clk 0:02:56]} 2. d4 {[%clk 0:03:00]}  cxd4 {[%clk 0:02:55]} 3. c3 {[%clk 0:03:01]}  e6 {[%clk 0:02:55]} 4. cxd4 {[%clk 0:03:01]}  d5 {[%clk 0:02:55]} 5. exd5 {[%clk 0:03:01]}  exd5 {[%clk 0:02:55]} 6. Nc3 {[%clk 0:03:02]}  Nc6 {[%clk 0:02:55]} 7. Nf3 {[%clk 0:03:02]}  Nf6 {[%clk 0:02:55]} 8. Bb5 {[%clk 0:03:03]}  Be7 {[%clk 0:02:52]} 9. Ne5 {[%clk 0:03:01]}  Bd7 {[%clk 0:02:52]} 10. Nxd7 {[%clk 0:03:01]}  Qxd7 {[%clk 0:02:53]} 11. O-O {[%clk 0:03:00]}  O-O {[%clk 0:02:54]} 12. Re1 {[%clk 0:02:58]}  a6 {[%clk 0:02:52]} 13. Ba4 {[%clk 0:02:58]}  Rfe8 {[%clk 0:02:51]} 14. Bg5 {[%clk 0:02:57]}  h6 {[%clk 0:02:46]} 15. Bh4 {[%clk 0:02:56]}  Qf5 {[%clk 0:02:38]} 16. Bg3 {[%clk 0:02:33]}  Bb4 {[%clk 0:02:25]} 17. Be5 {[%clk 0:02:15]}  Ne4 {[%clk 0:02:19]} 18. Qc2 {[%clk 0:01:53]}  Rxe5 {[%clk 0:02:05]} 19. Bxc6 {[%clk 0:01:46]}  Nxc3 {[%clk 0:01:52]} 20. Qxf5 {[%clk 0:01:43]}  Rxf5 {[%clk 0:01:51]} 21. Bxb7 {[%clk 0:01:28]}  Ra7 {[%clk 0:01:39]} 22. Bc8 {[%clk 0:01:26]}  Rf6 {[%clk 0:01:32]} 23. bxc3 {[%clk 0:01:26]}  Bxc3 {[%clk 0:01:32]} 24. Re8+ {[%clk 0:01:26]}  Kh7 {[%clk 0:01:28]} 25. Rd1 {[%clk 0:01:26]}  a5 {[%clk 0:01:17]} 26. Rd3 {[%clk 0:01:15]}  Rc7 {[%clk 0:01:14]} 27. g4 {[%clk 0:01:14]}  Rf4 {[%clk 0:01:05]} 28. Kg2 {[%clk 0:00:35]}  Bxd4 {[%clk 0:00:53]} 29. Rf3 {[%clk 0:00:35]}  Rxf3 {[%clk 0:00:47]} 30. Kxf3 {[%clk 0:00:36]}  g6 {[%clk 0:00:42]} 31. Rd8 {[%clk 0:00:33]}  Rc2 {[%clk 0:00:41]} 32. Rxd5 {[%clk 0:00:29]}  Bxf2 {[%clk 0:00:29]} 33. Rxa5 {[%clk 0:00:20]}  Bg1 {[%clk 0:00:26]} 34. Bb7 {[%clk 0:00:19]}  Rf2+ {[%clk 0:00:24]} 35. Kg3 {[%clk 0:00:18]}  Rxh2 {[%clk 0:00:21]} 36. Bd5 {[%clk 0:00:19]}  Rf2 {[%clk 0:00:21]} 37. Rb5 {[%clk 0:00:19]}  Kg7 {[%clk 0:00:17]} 38. Rb1 {[%clk 0:00:19]}  Rd2 {[%clk 0:00:16]} 39. Bxf7 {[%clk 0:00:18]}  Kxf7 {[%clk 0:00:15]} 40. Rxg1 {[%clk 0:00:18]}  Rxa2 {[%clk 0:00:15]} 41. Rb1 {[%clk 0:00:19]}  Ra3+ {[%clk 0:00:15]} 42. Kg2 {[%clk 0:00:19]}  Kf6 {[%clk 0:00:15]} 43. Rb5 {[%clk 0:00:19]}  Re3 {[%clk 0:00:13]} 44. Kf2 {[%clk 0:00:19]}  Re5 {[%clk 0:00:13]} 45. Rb6+ {[%clk 0:00:18]}  Kg5 {[%clk 0:00:14]} 46. Kf3 {[%clk 0:00:19]}  Rc5 {[%clk 0:00:13]} 47. Rb3 {[%clk 0:00:19]}  Rc4 {[%clk 0:00:13]} 48. Rb5+ {[%clk 0:00:18]}  Kh4 {[%clk 0:00:13]} 49. Rb6 {[%clk 0:00:18]}  Rc3+ {[%clk 0:00:11]} 50. Kf4 {[%clk 0:00:18]}  g5+ {[%clk 0:00:09]} 51. Ke4 {[%clk 0:00:16]}  Kxg4 {[%clk 0:00:08]} 52. Rxh6 {[%clk 0:00:17]}  Rc4+ {[%clk 0:00:07]} 53. Ke3 {[%clk 0:00:18]}  Rf4 {[%clk 0:00:07]} 54. Rg6 {[%clk 0:00:16]}  Rf7 {[%clk 0:00:07]} 55. Ke2 {[%clk 0:00:17]}  Kh4 {[%clk 0:00:06]} 56. Rh6+ {[%clk 0:00:17]}  Kg3 {[%clk 0:00:05]} 57. Rg6 {[%clk 0:00:18]}  g4 {[%clk 0:00:06]} 58. Rg8 {[%clk 0:00:18]}  Kh3 {[%clk 0:00:06]} 59. Rh8+ {[%clk 0:00:17]}  Kg2 {[%clk 0:00:06]} 60. Rg8 {[%clk 0:00:18]}  g3 {[%clk 0:00:06]} 61. Rh8 {[%clk 0:00:18]}  Kg1 {[%clk 0:00:06]} 62. Rh6 {[%clk 0:00:17]}  g2 {[%clk 0:00:06]} 63. Rg6 {[%clk 0:00:16]}  Rh7 {[%clk 0:00:05]} 64. Kf3 {[%clk 0:00:17]}  Kh1 {[%clk 0:00:04]} 65. Kf2 {[%clk 0:00:12]}  Rf7+ {[%clk 0:00:03]} 66. Kg3 {[%clk 0:00:11]}  g1=Q+ {[%clk 0:00:03]} 67. Kh3 {[%clk 0:00:12]}  Rf3+ {[%clk 0:00:02]} 68. Kh4 {[%clk 0:00:12]}  Qd4+ {[%clk 0:00:01]} 69. Kg5 {[%clk 0:00:13]}  Rg3+ {[%clk 0:00:01]} 70. Kh6 {[%clk 0:00:14]}  Rxg6+ {[%clk 0:00:01]} 71. Kxg6 {[%clk 0:00:15]}  Qf4 {[%clk 0:00:02]} 72. Kh7 {[%clk 0:00:16]}  Qg3 {[%clk 0:00:02]} 73. Kh8 {[%clk 0:00:16]}  Kg2 {[%clk 0:00:02]} 74. Kh7 {[%clk 0:00:17]}  Kf3 {[%clk 0:00:03]} 75. Kh8 {[%clk 0:00:18]}  Kf4 {[%clk 0:00:03]} 76. Kh7 {[%clk 0:00:19]}  Kf5 {[%clk 0:00:04]} 77. Kh8 {[%clk 0:00:19]}  Kf6 {[%clk 0:00:04]} 78. Kh7 {[%clk 0:00:20]}  Qg7# {[%clk 0:00:04]} 0-1


[Site "https://www.chess.com"]

[Event "Titled Tuesday Blitz January 03 Early 2023"]
[White "Guzman Moneo, Alberto"]
[Black "Aloma Vidal, Robert"]
[WhiteFideId "2209616"]
[BlackFideId "2260409"]
[WhiteElo "2170"]
[BlackElo "2442"]
[Result "0-1"]
[Round "01"]
[TimeControl "180+2"]
[Date "2023.01.03"]
[WhiteClock "0:00:36"]
[BlackClock "0:01:08"]

1. e4 {[%clk 0:02:57]}  e5 {[%clk 0:03:00]} 2. Nf3 {[%clk 0:02:56]}  Nf6 {[%clk 0:03:01]} 3. Nxe5 {[%clk 0:02:56]}  d6 {[%clk 0:03:01]} 4. Nf3 {[%clk 0:02:56]}  Nxe4 {[%clk 0:03:02]} 5. Nc3 {[%clk 0:02:56]}  Nf6 {[%clk 0:03:01]} 6. d4 {[%clk 0:02:56]}  g6 {[%clk 0:03:02]} 7. Bg5 {[%clk 0:02:55]}  Bg7 {[%clk 0:03:02]} 8. Qd2 {[%clk 0:02:55]}  h6 {[%clk 0:03:01]} 9. Bf4 {[%clk 0:02:53]}  a6 {[%clk 0:02:55]} 10. Bd3 {[%clk 0:02:47]}  Nc6 {[%clk 0:02:39]} 11. h3 {[%clk 0:02:42]}  Ne7 {[%clk 0:02:30]} 12. O-O-O {[%clk 0:02:40]}  b5 {[%clk 0:02:25]} 13. Rhe1 {[%clk 0:02:35]}  Bb7 {[%clk 0:02:20]} 14. Ne4 {[%clk 0:02:18]}  Nfd5 {[%clk 0:02:12]} 15. Bh2 {[%clk 0:02:11]}  O-O {[%clk 0:02:10]} 16. Kb1 {[%clk 0:02:00]}  b4 {[%clk 0:02:09]} 17. c4 {[%clk 0:01:57]}  bxc3 {[%clk 0:02:08]} 18. Nxc3 {[%clk 0:01:57]}  Rb8 {[%clk 0:02:02]} 19. Bc4 {[%clk 0:01:54]}  Nb6 {[%clk 0:01:57]} 20. Bb3 {[%clk 0:01:50]}  a5 {[%clk 0:01:57]} 21. Bc2 {[%clk 0:01:48]}  Ned5 {[%clk 0:01:49]} 22. Ne4 {[%clk 0:01:27]}  a4 {[%clk 0:01:43]} 23. Nc3 {[%clk 0:00:42]}  Nc4 {[%clk 0:01:18]} 24. Qe2 {[%clk 0:00:38]}  Nxb2 {[%clk 0:01:08]} 25. Kxb2 {[%clk 0:00:36]}  Ba6+ {[%clk 0:01:08]} 0-1


[Site "https://www.chess.com"]

[Event "Titled Tuesday Blitz January 03 Early 2023"]
[White "Freitag, Manfred"]
[Black "Ankerst, Mihael"]
[WhiteFideId "1602004"]
[BlackFideId "14602369"]
[WhiteElo "2352"]
[BlackElo "2370"]
[Result "1-0"]
[Round "01"]
[TimeControl "180+2"]
[Date "2023.01.03"]
[WhiteClock "0:00:55"]
[BlackClock "0:00:34"]

1. e4 {[%clk 0:02:59]}  c5 {[%clk 0:02:59]} 2. Nf3 {[%clk 0:02:59]}  Qb6 {[%clk 0:03:00]} 3. c3 {[%clk 0:02:58]}  e6 {[%clk 0:02:59]} 4. d4 {[%clk 0:02:58]}  d5 {[%clk 0:03:00]} 5. e5 {[%clk 0:02:58]}  Bd7 {[%clk 0:02:59]} 6. Bd3 {[%clk 0:02:58]}  Bb5 {[%clk 0:03:00]} 7. dxc5 {[%clk 0:02:59]}  Bxc5 {[%clk 0:02:58]} 8. b4 {[%clk 0:03:00]}  Bf8 {[%clk 0:02:57]} 9. a4 {[%clk 0:02:56]}  Bxd3 {[%clk 0:02:57]} 10. Qxd3 {[%clk 0:02:57]}  Ne7 {[%clk 0:02:57]} 11. O-O {[%clk 0:02:56]}  Nf5 {[%clk 0:02:51]} 12. Na3 {[%clk 0:02:54]}  Be7 {[%clk 0:02:50]} 13. a5 {[%clk 0:02:49]}  Qc6 {[%clk 0:02:46]} 14. Nb5 {[%clk 0:02:47]}  O-O {[%clk 0:02:41]} 15. Nbd4 {[%clk 0:02:47]}  Nxd4 {[%clk 0:02:40]} 16. Nxd4 {[%clk 0:02:47]}  Qc7 {[%clk 0:02:40]} 17. Re1 {[%clk 0:02:46]}  Nc6 {[%clk 0:02:40]} 18. Nb5 {[%clk 0:02:41]}  Nxe5 {[%clk 0:02:25]} 19. Qf1 {[%clk 0:02:32]}  Qb8 {[%clk 0:02:22]} 20. Bf4 {[%clk 0:02:31]}  f6 {[%clk 0:02:06]} 21. Qe2 {[%clk 0:02:27]}  Rc8 {[%clk 0:02:01]} 22. Rac1 {[%clk 0:02:23]}  Bd6 {[%clk 0:01:40]} 23. Bg3 {[%clk 0:02:10]}  Re8 {[%clk 0:01:31]} 24. Qh5 {[%clk 0:01:28]}  Nc4 {[%clk 0:01:23]} 25. Nxd6 {[%clk 0:01:24]}  Nxd6 {[%clk 0:01:22]} 26. c4 {[%clk 0:01:24]}  dxc4 {[%clk 0:01:06]} 27. Rxc4 {[%clk 0:01:17]}  e5 {[%clk 0:01:05]} 28. Rcc1 {[%clk 0:01:16]}  Nb5 {[%clk 0:00:58]} 29. f4 {[%clk 0:01:13]}  g6 {[%clk 0:00:57]} 30. Qh4 {[%clk 0:01:10]}  Nd4 {[%clk 0:00:43]} 31. fxe5 {[%clk 0:01:10]}  Nf5 {[%clk 0:00:43]} 32. Qxf6 {[%clk 0:01:08]}  Nxg3 {[%clk 0:00:41]} 33. hxg3 {[%clk 0:01:09]}  Qd8 {[%clk 0:00:37]} 34. Rf1 {[%clk 0:00:55]}  Qxf6 {[%clk 0:00:35]} 35. exf6 {[%clk 0:00:55]}  Rac8 {[%clk 0:00:34]} 36. f7+ {[%clk 0:00:55]} 1-0


[Site "https://www.chess.com"]

[Event "Titled Tuesday Blitz January 03 Early 2023"]
[White "Sourath Biswas"]
[Black "Martin, Lewis"]
[WhiteFideId "35091484"]
[BlackFideId "410551"]
[WhiteElo "2281"]
[BlackElo "2135"]
[Result "1-0"]
[Round "01"]
[TimeControl "180+2"]
[Date "2023.01.03"]
[WhiteClock "0:00:13"]
[BlackClock "0:00:06"]

1. d4 {[%clk 0:03:00]}  d5 {[%clk 0:02:59]} 2. Bf4 {[%clk 0:03:01]}  e6 {[%clk 0:02:57]} 3. e3 {[%clk 0:03:01]}  Nf6 {[%clk 0:02:54]} 4. Nf3 {[%clk 0:03:01]}  Bd6 {[%clk 0:02:51]} 5. c3 {[%clk 0:03:02]}  O-O {[%clk 0:02:50]} 6. Nbd2 {[%clk 0:03:02]}  c5 {[%clk 0:02:50]} 7. Ne5 {[%clk 0:03:02]}  Nc6 {[%clk 0:02:37]} 8. Bd3 {[%clk 0:03:02]}  Qc7 {[%clk 0:02:24]} 9. Ndf3 {[%clk 0:03:01]}  Ne4 {[%clk 0:02:14]} 10. O-O {[%clk 0:03:00]}  f6 {[%clk 0:02:11]} 11. Nxc6 {[%clk 0:02:56]}  Bxf4 {[%clk 0:02:05]} 12. exf4 {[%clk 0:02:56]}  bxc6 {[%clk 0:02:02]} 13. Qc1 {[%clk 0:02:48]}  Rb8 {[%clk 0:01:49]} 14. Re1 {[%clk 0:02:47]}  cxd4 {[%clk 0:01:43]} 15. cxd4 {[%clk 0:02:47]}  Nd6 {[%clk 0:01:38]} 16. b3 {[%clk 0:02:42]}  Bd7 {[%clk 0:01:38]} 17. Qc2 {[%clk 0:02:38]}  g6 {[%clk 0:01:36]} 18. Rac1 {[%clk 0:01:52]}  Nf5 {[%clk 0:01:31]} 19. Bxf5 {[%clk 0:01:49]}  exf5 {[%clk 0:01:23]} 20. g3 {[%clk 0:01:37]}  Rbe8 {[%clk 0:01:22]} 21. Qc5 {[%clk 0:01:38]}  Rxe1+ {[%clk 0:01:07]} 22. Rxe1 {[%clk 0:01:37]}  Re8 {[%clk 0:00:57]} 23. Re7 {[%clk 0:01:38]}  Qd8 {[%clk 0:00:49]} 24. Rxe8+ {[%clk 0:01:32]}  Qxe8 {[%clk 0:00:49]} 25. Qxa7 {[%clk 0:01:33]}  h6 {[%clk 0:00:41]} 26. Qc7 {[%clk 0:01:23]}  g5 {[%clk 0:00:38]} 27. fxg5 {[%clk 0:01:13]}  hxg5 {[%clk 0:00:36]} 28. Qd6 {[%clk 0:01:13]}  Kg7 {[%clk 0:00:35]} 29. h3 {[%clk 0:01:07]}  Bc8 {[%clk 0:00:31]} 30. Qc7+ {[%clk 0:00:52]}  Kg6 {[%clk 0:00:31]} 31. h4 {[%clk 0:00:52]}  g4 {[%clk 0:00:28]} 32. Nd2 {[%clk 0:00:32]}  Qe1+ {[%clk 0:00:28]} 33. Kg2 {[%clk 0:00:31]}  Ba6 {[%clk 0:00:23]} 34. Qf4 {[%clk 0:00:27]}  Bd3 {[%clk 0:00:19]} 35. a4 {[%clk 0:00:23]}  Bc2 {[%clk 0:00:16]} 36. a5 {[%clk 0:00:21]}  Qa1 {[%clk 0:00:13]} 37. b4 {[%clk 0:00:17]}  Bd3 {[%clk 0:00:13]} 38. Qe3 {[%clk 0:00:14]}  Qa3 {[%clk 0:00:12]} 39. Qe8+ {[%clk 0:00:13]}  Kg7 {[%clk 0:00:12]} 40. Qe7+ {[%clk 0:00:13]}  Kg6 {[%clk 0:00:11]} 41. Qe8+ {[%clk 0:00:12]}  Kg7 {[%clk 0:00:11]} 42. h5 {[%clk 0:00:12]}  f4 {[%clk 0:00:10]} 43. Qe7+ {[%clk 0:00:09]}  Kh6 {[%clk 0:00:09]} 44. Qxf6+ {[%clk 0:00:10]}  Kxh5 {[%clk 0:00:09]} 45. Qe5+ {[%clk 0:00:10]}  Kh6 {[%clk 0:00:08]} 46. Qxf4+ {[%clk 0:00:11]}  Kg7 {[%clk 0:00:08]} 47. Qxg4+ {[%clk 0:00:11]}  Kf7 {[%clk 0:00:08]} 48. Qf3+ {[%clk 0:00:12]}  Ke7 {[%clk 0:00:08]} 49. Qe3+ {[%clk 0:00:12]}  Kd7 {[%clk 0:00:08]} 50. Nf3 {[%clk 0:00:13]}  Qb3 {[%clk 0:00:06]} 51. Qxd3 {[%clk 0:00:12]}  Qxd3 {[%clk 0:00:06]} 52. Ne5+ {[%clk 0:00:13]} 1-0


[Site "https://www.chess.com"]

[Event "Titled Tuesday Blitz January 03 Early 2023"]
[White "Md, Imran"]
[Black "Malek, Jan"]
[WhiteFideId "25748580"]
[BlackFideId "21864080"]
[WhiteElo "2284"]
[BlackElo "2370"]
[Result "0-1"]
[Round "01"]
[TimeControl "180+2"]
[Date "2023.01.03"]
[WhiteClock "0:01:12"]
[BlackClock "0:00:53"]

1. Nf3 {[%clk 0:02:59]}  b6 {[%clk 0:02:55]} 2. c4 {[%clk 0:02:55]}  Bb7 {[%clk 0:02:55]} 3. Nc3 {[%clk 0:02:56]}  e6 {[%clk 0:02:52]} 4. d4 {[%clk 0:02:53]}  Bb4 {[%clk 0:02:52]} 5. Qc2 {[%clk 0:02:51]}  Nf6 {[%clk 0:02:48]} 6. Bg5 {[%clk 0:02:50]}  h6 {[%clk 0:02:47]} 7. Bxf6 {[%clk 0:02:47]}  Qxf6 {[%clk 0:02:46]} 8. a3 {[%clk 0:02:47]}  Bxc3+ {[%clk 0:02:45]} 9. Qxc3 {[%clk 0:02:48]}  O-O {[%clk 0:02:44]} 10. g3 {[%clk 0:02:45]}  c5 {[%clk 0:02:31]} 11. O-O-O {[%clk 0:02:36]}  Bxf3 {[%clk 0:02:17]} 12. Qxf3 {[%clk 0:02:27]}  Qxf3 {[%clk 0:02:13]} 13. exf3 {[%clk 0:02:26]}  cxd4 {[%clk 0:02:10]} 14. Rxd4 {[%clk 0:02:26]}  Rd8 {[%clk 0:02:09]} 15. f4 {[%clk 0:02:20]}  Nc6 {[%clk 0:02:08]} 16. Rd6 {[%clk 0:02:20]}  Rac8 {[%clk 0:02:05]} 17. b3 {[%clk 0:02:07]}  Kf8 {[%clk 0:02:04]} 18. Kb2 {[%clk 0:02:04]}  Ke7 {[%clk 0:02:04]} 19. Rd2 {[%clk 0:02:03]}  Na5 {[%clk 0:01:57]} 20. Bg2 {[%clk 0:01:59]}  Rc7 {[%clk 0:01:55]} 21. Rhd1 {[%clk 0:01:58]}  Rb8 {[%clk 0:01:42]} 22. Ka2 {[%clk 0:01:57]}  b5 {[%clk 0:01:36]} 23. c5 {[%clk 0:01:45]}  b4 {[%clk 0:01:30]} 24. Rd4 {[%clk 0:01:45]}  bxa3 {[%clk 0:01:02]} 25. Kxa3 {[%clk 0:01:30]}  Nxb3 {[%clk 0:00:55]} 26. Rb1 {[%clk 0:01:11]}  Nxd4 {[%clk 0:00:53]} 27. Rxb8 {[%clk 0:01:12]} 0-1


[Site "https://www.chess.com"]

[Event "Titled Tuesday Blitz January 03 Early 2023"]
[White "De La Colina, Nicolas"]
[Black "Samaganova, Aleksandra"]
[WhiteFideId "30946921"]
[BlackFideId "13800221"]
[WhiteElo "2244"]
[BlackElo "1856"]
[Result "1-0"]
[Round "01"]
[TimeControl "180+2"]
[Date "2023.01.03"]
[WhiteClock "0:00:09"]
[BlackClock "0:00:02"]

1. e4 {[%clk 0:02:59]}  c5 {[%clk 0:02:57]} 2. Nf3 {[%clk 0:02:58]}  e6 {[%clk 0:02:55]} 3. d3 {[%clk 0:02:57]}  Nc6 {[%clk 0:02:55]} 4. g3 {[%clk 0:02:57]}  Nf6 {[%clk 0:02:54]} 5. Bg2 {[%clk 0:02:57]}  d5 {[%clk 0:02:51]} 6. Qe2 {[%clk 0:02:57]}  Be7 {[%clk 0:02:51]} 7. O-O {[%clk 0:02:56]}  O-O {[%clk 0:02:50]} 8. e5 {[%clk 0:02:57]}  Nd7 {[%clk 0:02:50]} 9. c4 {[%clk 0:02:58]}  Nb6 {[%clk 0:02:46]} 10. h4 {[%clk 0:02:46]}  h6 {[%clk 0:02:27]} 11. h5 {[%clk 0:02:35]}  f6 {[%clk 0:02:06]} 12. Nc3 {[%clk 0:02:12]}  d4 {[%clk 0:01:54]} 13. exf6 {[%clk 0:02:03]}  Bxf6 {[%clk 0:01:42]} 14. Ne4 {[%clk 0:02:01]}  e5 {[%clk 0:01:29]} 15. Nxc5 {[%clk 0:01:53]}  Bg4 {[%clk 0:01:17]} 16. Qe4 {[%clk 0:01:51]}  Bxh5 {[%clk 0:01:09]} 17. Ne6 {[%clk 0:01:45]}  Qd7 {[%clk 0:01:02]} 18. Nxf8 {[%clk 0:01:43]}  Rxf8 {[%clk 0:01:03]} 19. Bd2 {[%clk 0:01:34]}  Ne7 {[%clk 0:00:54]} 20. Nxe5 {[%clk 0:01:14]}  Bxe5 {[%clk 0:00:44]} 21. Qxe5 {[%clk 0:01:15]}  Bg6 {[%clk 0:00:43]} 22. Qe2 {[%clk 0:00:57]}  Nc6 {[%clk 0:00:33]} 23. Rfe1 {[%clk 0:00:54]}  Qf5 {[%clk 0:00:29]} 24. Be4 {[%clk 0:00:52]}  Qf6 {[%clk 0:00:29]} 25. Bxg6 {[%clk 0:00:49]}  Qxg6 {[%clk 0:00:30]} 26. Qe6+ {[%clk 0:00:49]}  Qxe6 {[%clk 0:00:30]} 27. Rxe6 {[%clk 0:00:50]}  Rf3 {[%clk 0:00:29]} 28. Bf4 {[%clk 0:00:37]}  Rxd3 {[%clk 0:00:28]} 29. b3 {[%clk 0:00:38]}  Nb4 {[%clk 0:00:26]} 30. Re7 {[%clk 0:00:33]}  Nc2 {[%clk 0:00:24]} 31. Rf1 {[%clk 0:00:27]}  Rc3 {[%clk 0:00:19]} 32. Be5 {[%clk 0:00:25]}  Kf8 {[%clk 0:00:16]} 33. Rxb7 {[%clk 0:00:23]}  Rf3 {[%clk 0:00:15]} 34. Bxg7+ {[%clk 0:00:23]}  Ke8 {[%clk 0:00:15]} 35. Rd1 {[%clk 0:00:20]}  d3 {[%clk 0:00:15]} 36. Bxh6 {[%clk 0:00:19]}  Nd7 {[%clk 0:00:12]} 37. Rxa7 {[%clk 0:00:17]}  Ne5 {[%clk 0:00:11]} 38. Kg2 {[%clk 0:00:17]}  Nd4 {[%clk 0:00:08]} 39. Bg5 {[%clk 0:00:17]}  Kf8 {[%clk 0:00:05]} 40. Be7+ {[%clk 0:00:15]}  Ke8 {[%clk 0:00:04]} 41. Bg5 {[%clk 0:00:14]}  Ng4 {[%clk 0:00:04]} 42. Be3 {[%clk 0:00:13]}  Nxe3+ {[%clk 0:00:03]} 43. fxe3 {[%clk 0:00:14]}  Rxe3 {[%clk 0:00:04]} 44. c5 {[%clk 0:00:13]}  Re2+ {[%clk 0:00:04]} 45. Kf1 {[%clk 0:00:12]}  Nf3 {[%clk 0:00:04]} 46. Rxd3 {[%clk 0:00:09]}  Rb2 {[%clk 0:00:02]} 47. Rxf3 {[%clk 0:00:09]} 1-0


[Site "https://www.chess.com"]